Cogmind - Beta 15 @@@ ROGUE MODE // 2025.08.09 @ 20:24:14 Player: SnailSD Result: Destroyed by G-47 Trooper with Particle Gun Performance ------------- Evolutions (1) 500 Regions Visited (6) 1200 Robots Destroyed (80) 400 Value Destroyed (1578) 1578 Prototype IDs (38) 760 Alien Tech Used (0) 0 Bonus (445) 445 TOTAL SCORE: 4883 Bonus ------- High Alert Combat Kills 19 Follower Combat Kills 126 Aligned with FarCom 300 Cogmind --------- Core Integrity 0/400 Matter 100/300 Energy 233/250 System Corruption 2% Temperature Critical (535) Movement Treading (160) Location -8/Mines Parts ------- > --- POWER (1) -------- Ion Engine > --- PROPULSION (2) --- Light Treads Light Treads > --- UTILITY (4) ------ Large Storage Unit Hardened Light Armor Plating Hacking Suite > --- WEAPON (2) ------- Assault Cannon Assault Cannon > --- INVENTORY (15) --- Light Treads Light Treads Improved Flight Unit Improved Flight Unit Flying Fortress v7 Medium Matter Pod (100) Hacking Suite Assault Cannon Grenade Launcher Datajack Mace Peak State ------------ > --- POWER ------------ Ion Engine > --- PROPULSION ------- Light Treads Light Treads > --- UTILITY ---------- Large Storage Unit Light Armor Plating Hardened Light Armor Plating Hacking Suite > --- WEAPON ----------- Assault Cannon Assault Cannon > --- INVENTORY -------- Light Treads Light Treads Improved Flight Unit Improved Flight Unit Flying Fortress v7 Medium Matter Pod Hacking Suite Assault Cannon Assault Cannon Grenade Launcher Datajack Mace [Rating: 21] Favorites ----------- Power Ion Engine Engine Ion Engine Propulsion Light Treads Treads Light Treads Flight Unit Improved Flight Unit Utility Large Storage Unit Device Improved Terrain Scanner Storage Large Storage Unit Processor Visual Processing Unit Hackware Hacking Suite Protection Hardened Light Armor Plating Weapon Assault Cannon Energy Gun EM Pulse Gun Ballistic Gun Autogun Ballistic Cannon Assault Cannon Launcher Grenade Launcher Special Melee Weapon Datajack Build | -11 -10 -10 -9 -9 -9 -8 ------- Run | Yrd Mat Min Mat Min Exi Min Slots Evolved 2 | . . . 2 . . . Power . | . . . . . . . Propulsion . | . . . . . . . Utility 2 | . . . 2 . . . Weapon . | . . . . . . . Parts Attached 40 | 7 6 . 19 4 3 1 Power 2 | 1 . . . 1 . . Engine 2 | 1 . . . 1 . . Core . | . . . . . . . Reactor . | . . . . . . . Propulsion 9 | 2 . . 5 2 . . Treads 8 | 2 . . 4 2 . . Leg . | . . . . . . . Wheel . | . . . . . . . Hover . | . . . . . . . Flight 1 | . . . 1 . . . Utility 12 | 2 1 . 7 . 2 . Device 1 | 1 . . . . . . Storage 2 | 1 1 . . . . . Processor 5 | . . . 5 . . . Hackware 1 | . . . . . 1 . Protection 3 | . . . 2 . 1 . Artifact . | . . . . . . . Weapon 17 | 2 5 . 7 1 1 1 Energy Gun 6 | 1 3 . 2 . . . Energy Cannon . | . . . . . . . Ballistic Gun 4 | 1 . . 3 . . . Ballistic Cannon 5 | . 2 . 2 . . 1 Launcher 1 | . . . . 1 . . Special Weapon . | . . . . . . . Impact Weapon . | . . . . . . . Slashing Weapon . | . . . . . . . Piercing Weapon . | . . . . . . . Special Melee Weapon 1 | . . . . . 1 . Unidentified Prototypes 1 | . . . 1 . . . Parts Lost 11 | . 1 . 7 1 . 2 Power 1 | . . . . 1 . . Propulsion 3 | . . . 3 . . . Utility 3 | . . . 2 . . 1 Weapon 4 | . 1 . 2 . . 1 Highest Loss Streak 4 | . 1 . 4 1 . 2 To Critical Strikes . | . . . . . . . Average Backups 12 | 5 12 14 14 14 12 11 Power . | . 1 1 1 . . . Propulsion 4 | 4 4 5 3 3 4 5 Utility 4 | . 3 6 5 5 2 2 Weapon 2 | . 1 1 2 4 4 3 Tool/Special . | . . . . . . . Unused Backups 20 | . 4 . 7 . 1 8 Power 1 | . . . 1 . . . Propulsion 11 | . 2 . 5 . . 4 Utility 5 | . 1 . 1 . 1 2 Weapon 3 | . 1 . . . . 2 Tool/Special . | . . . . . . . Average Slot Usage (%) 94 | . 99 100 94 95 84 100 Engine 11 | . 14 14 10 7 11 11 Treads 23 | . 28 28 21 22 22 22 Device 4 | . 14 14 3 . . . Storage 11 | . 14 14 11 11 11 11 Processor 11 | . . . 19 22 5 . Hackware 1 | . . . . . 8 11 Protection 8 | . . . 6 11 19 22 Energy Gun 2 | . 4 14 4 . . . Ballistic Gun 2 | . . . 8 . . . Ballistic Cannon 14 | . 23 14 8 21 2 22 Peak Build Rating 21 | 9 10 11 18 17 21 21 Average Rating 13 | 6 9 10 14 16 14 20 On Entrance 12 | . 9 10 11 17 17 21 Naked Turns . | . . . . . . . Heaviest Build 43 | 15 32 31 40 40 43 43 Greatest Support 40 | 40 40 40 40 40 40 40 Greatest Overweight (x) 2 | 2 . . 1 . 1 1 Average Overweight (x) . | . . . . . . 1 Largest Inventory Capacity 15 | 8 15 15 15 15 15 15 Average Capacity 14 | 7 12 15 15 15 15 15 Most Carried 15 | 8 15 15 15 15 15 15 Average Carried 13 | 5 12 14 14 14 14 14 Final Capacity 15 | 8 15 15 15 15 15 15 Final Carried 15 | 8 14 15 15 14 15 14 Class Distribution -------------------- 70% | Mutant 25% | Scavenger-Mutant 3% | Skirmisher Dominant Class ---------------- Mutant | -10/Materials Mutant | -10/Mines Mutant | -9/Materials Mutant | -9/Mines Scavenger-Mutant | -9/Exiles Scavenger-Mutant | -8/Mines Resources | -11 -10 -10 -9 -9 -9 -8 ----------- Run | Yrd Mat Min Mat Min Exi Min Matter Collected 2016 | 288 627 20 800 281 . . Remotely . | . . . . . . . Salvage Created 2032 | 101 678 . 1105 88 . 60 Parts 139 | 6 42 . 76 8 . 7 Haulers Intercepted 5 | . 2 . 3 . . . Recyclers Shooed 3 | . 2 . . . . 1 Parts Field Recycled . | . . . . . . . Retrieved Matter . | . . . . . . . Parts Self-Destructed . | . . . . . . . Prevented . | . . . . . . . Kills | -11 -10 -10 -9 -9 -9 -8 ------- Run | Yrd Mat Min Mat Min Exi Min Combat Hostiles Destroyed 50 | . 15 . 25 6 . 4 Guns 15 | . . . 15 . . . Cannons 28 | . 15 . 8 4 . 1 AOE 7 | . . . 2 2 . 3 Classes Destroyed 11 | 3 6 . 2 . . . Worker 7 | 1 1 . 5 . . . Builder 7 | . 1 . 5 1 . . Tunneler 1 | 1 . . . . . . Hauler 5 | . 2 . 3 . . . Recycler 6 | 1 4 . . . . 1 Operator 2 | . 2 . . . . . Watcher 2 | . 2 . . . . . Swarmer 21 | . 8 . 7 3 . 3 Grunt 19 | . 7 . 9 3 . . Duelist 2 | . . . 1 . . 1 Sentry 8 | . . . 8 . . . Best Kill Streak 7 | 1 6 . 7 4 . 5 Combat Bots Only 6 | . 6 . 6 3 . 4 Max Kills in Single Turn 3 | 1 1 . 3 2 . 2 Gunslinging 1 | . . . 1 . . . Exploded 2 | . . . 2 2 . 2 Melee . | . . . . . . . Uniques/NPCs Destroyed . | . . . . . . . Combat | -11 -10 -10 -9 -9 -9 -8 -------- Run | Yrd Mat Min Mat Min Exi Min Hostile Shots Fired 288 | . 87 . 145 31 . 25 Missed 96 | . 31 . 51 10 . 4 Hits 192 | . 56 . 94 21 . 21 Melee 5 | . . . 4 . . 1 Projectile 187 | . 56 . 90 21 . 20 Critical Strikes 4 | . 2 . 1 . . 1 Damage Taken 2540 | . 524 . 1355 287 . 374 Core 510 | . 95 . 258 46 . 111 Absorbed by Shields . | . . . . . . . Regen/Repaired (Parts) 55 | . . . 55 . . . Core Remaining (%) 81 | 100 . 62 . . . . Volleys Fired 200 | 6 66 . 95 21 . 12 Largest 2 | 2 2 . 2 2 . 2 Hottest 110 | 70 70 . 110 74 . 74 Shots Fired 368 | 12 129 . 171 39 . 17 Gun 117 | 12 6 . 99 . . . Cannon 247 | . 123 . 72 37 . 15 Launcher 4 | . . . . 2 . 2 Special . | . . . . . . . Kinetic 317 | 6 123 . 136 37 . 15 Thermal 26 | 6 . . 20 . . . Explosive 4 | . . . . 2 . 2 Electromagnetic 21 | . 6 . 15 . . . Robot Hit Streak 9 | 4 7 . 9 6 . 5 Robot Miss Streak 9 | 2 9 . 5 4 . 4 Penetration Max . | . . . . . . . Secondary Targets 4 | . . . 4 . . . Max Gunslinging Chain 1 | . . . 1 . . . Shots Hit Robots 220 | 6 66 . 110 24 5 9 Core Hits 94 | 4 29 . 46 8 . 7 Critical Kills . | . . . . . . . Critical Parts Destroyed 1 | . . . 1 . . . Critical Strikes 8 | . 3 . 2 3 . . Burn 1 | . . . 1 . . . Destroy 1 | . . . 1 . . . Blast 6 | . 3 . . 3 . . Melee Attacks 5 | . . . . . 5 . Impact . | . . . . . . . Slashing . | . . . . . . . Piercing . | . . . . . . . Sneak Attacks 5 | . . . . . 5 . Combat Hostiles . | . . . . . . . Follow-up Attacks . | . . . . . . . Damage Inflicted 4978 | 88 1178 . 2491 685 . 536 Guns 1170 | 88 49 . 1033 . . . Cannons 3032 | . 1119 . 1158 553 . 202 Explosions 757 | . . . 291 132 . 334 Melee . | . . . . . . . Ramming 19 | . 10 . 9 . . . Kinetic 3737 | 38 1119 . 1825 553 . 202 Thermal 570 | 50 . . 520 . . . Explosive 466 | . . . . 132 . 334 Electromagnetic 186 | . 49 . 137 . . . Impact . | . . . . . . . Slashing . | . . . . . . . Piercing . | . . . . . . . Highest Corruption 2 | . . . 2 2 2 2 Average Corruption 2 | . . . 2 2 2 2 Corruption Purged . | . . . . . . . Corruption Blocked . | . . . . . . . Effects 45 | . . . 16 17 11 1 Message Errors 13 | . . . 6 4 3 . Matter Fused 11 | . . . 3 5 3 . Heat Flow Errors 8 | . . . 2 2 3 1 Energy Discharges 2 | . . . 1 1 . . Parts Rejected 1 | . . . . 1 . . Parts Fused 1 | . . . 1 . . . Data Loss (minor) 6 | . . . 2 3 1 . Alerts 2 | . . . 1 . 1 . Weapon Failures 1 | . . . . 1 . . Overload Shots . | . . . . . . . Overflow Damage 97 | . 10 . 83 4 . . Projectiles 31 | . 10 . 17 4 . . Explosions 66 | . . . 66 . . . Melee . | . . . . . . . Knockbacks 27 | . 14 . 5 4 . 4 Impact . | . . . . . . . Kinetic 26 | . 13 . 5 4 . 4 Secondary 1 | . 1 . . . . . Self-Inflicted Damage 105 | . . . 68 37 . . Shots 2 | . . . 1 1 . . Rammed 3 | . 1 . 2 . . . Targets Rammed 3 | . 1 . 2 . . . Kicked . | . . . . . . . Crushed . | . . . . . . . Highest Temperature 526 | 9 30 . 420 198 204 526 Average Temperature 77 | 6 12 . 81 70 86 242 Received Heat Transfer 780 | . 126 . 375 117 . 162 Effects 15 | . . . 6 . . 9 Shutdowns 2 | . . . 1 . . 1 Energy Bleed 2 | . . . 1 . . 1 Interference 5 | . . . 4 . . 1 Damage (minor) 2 | . . . . . . 2 Damage (major) 3 | . . . . . . 3 Damage (core) 1 | . . . . . . 1 Siege Activations . | . . . . . . . Martial Activations . | . . . . . . . Shielding Activations . | . . . . . . . Robots Disrupted . | . . . . . . . Combat Hostiles . | . . . . . . . Robots Corrupted . | . . . . . . . Combat Hostiles . | . . . . . . . Parts Fried 2 | . 1 . 1 . . . Impact Corruptions . | . . . . . . . Robots Melted . | . . . . . . . Combat Hostiles . | . . . . . . . Parts Melted 1 | . . . 1 . . . Heat Transferred 927 | 148 . . 779 . . . Parts Sabotaged . | . . . . . . . Parts Stolen . | . . . . . . . Parts Stripped . | . . . . . . . Power Chain Reactions . | . . . . . . . Alert | -11 -10 -10 -9 -9 -9 -8 ------- Run | Yrd Mat Min Mat Min Exi Min Maximum Alert Level 2 | . 1 . 2 . . . Low Security (%) 51 | 100 21 100 34 100 . 100 Level 1 45 | . 78 . 55 . . . Level 2 3 | . . . 9 . . . Level 3 . | . . . . . . . Level 4 . | . . . . . . . Level 5 . | . . . . . . . High Security . | . . . . . . . Max Security . | . . . . . . . Peak Influence 414 | 5 316 117 414 158 . 96 Initial 154 | . 3 84 41 154 . . Average 171 | . 212 88 225 89 . 9 Influence Increases 1847 | 15 594 53 843 224 . 118 Destroy 0b10 Robot/C 1080 | . 300 40 500 160 . 80 Destroy 0b10 Robot/NC 150 | 15 60 . 65 5 . 5 Destroy Leader 274 | . 78 10 146 20 . 20 Allied During Kill 7 | . . 3 . 4 . . Successful Hack 12 | . . . 12 . . . Disable Machine 105 | . 60 . 30 15 . . Destroy Structure 84 | . 6 . 45 20 . 13 Lose Combat Pursuer 135 | . 90 . 45 . . . Influence Decreases 1760 | 10 383 162 552 622 . 31 Entered New Map 444 | . 2 132 66 244 . . Time Decay 1201 | 10 371 30 432 348 . 10 Lost Part 94 | . 10 . 54 10 . 20 Lost Ally 21 | . . . . 20 . 1 Squads Dispatched 6 | . 3 . 2 . . 1 Investigation . | . . . . . . . Extermination . | . . . . . . . Reinforcement 6 | . 3 . 2 . . 1 Assault . | . . . . . . . Garrison . | . . . . . . . Intercept . | . . . . . . . Searches Triggered . | . . . . . . . Construction Impeded 1 | . . . . . . 1 Haulers Reinforced . | . . . . . . . Active Scanning Responses . | . . . . . . . Cargo Convoy Interrupts . | . . . . . . . Stealth | -11 -10 -10 -9 -9 -9 -8 --------- Run | Yrd Mat Min Mat Min Exi Min Distress Signals 4 | . . . 4 . . . Communications Jammed . | . . . . . . . Distress Signals . | . . . . . . . Times Spotted 90 | . 32 2 41 8 . 7 Peak Tracking Total 8 | . 5 2 8 3 . 7 Tactical Retreats 5 | . 3 . 2 . . . Traps | -11 -10 -10 -9 -9 -9 -8 ------- Run | Yrd Mat Min Mat Min Exi Min Traps Triggered 2 | . . . 2 . . . Indirectly . | . . . . . . . Trap Hack Attempts . | . . . . . . . Triggered . | . . . . . . . Disarmed . | . . . . . . . Reprogrammed . | . . . . . . . Reused . | . . . . . . . Traps Extracted . | . . . . . . . Installed . | . . . . . . . Triggered . | . . . . . . . Machines | -11 -10 -10 -9 -9 -9 -8 ---------- Run | Yrd Mat Min Mat Min Exi Min Machines Disabled 7 | . 4 . 2 1 . . Max in Single Turn 2 | . 2 . 2 1 . . Machines Repaired . | . . . . . . . Machines Dismantled . | . . . . . . . Machines Sabotaged . | . . . . . . . Overloaded Fab Kills . | . . . . . . . Hacking | -11 -10 -10 -9 -9 -9 -8 --------- Run | Yrd Mat Min Mat Min Exi Min Machines Accessed 9 | . 1 . 6 . 2 . Terminals 4 | . 1 . 3 . . . Fabricators . | . . . . . . . Repair Stations 1 | . . . 1 . . . Recycling Units . | . . . . . . . Scanalyzers 2 | . . . 2 . . . Garrison Access . | . . . . . . . Total Hacks 23 | . 5 . 13 . 5 . Successful 12 | . . . 7 . 5 . Failed 11 | . 5 . 6 . . . Catastrophic 1 | . 1 . . . . . Database Lockouts . | . . . . . . . Manual 11 | . 5 . 5 . 1 . Terminals 10 | . 5 . 5 . . . Fabricators . | . . . . . . . Repair Stations 2 | . . . 2 . . . Recycling Units . | . . . . . . . Scanalyzers 6 | . . . 6 . . . Garrison Access . | . . . . . . . Terminal Hacks 6 | . . . 1 . 5 . Record 4 | . . . . . 4 . Transport Status 1 | . . . 1 . . . Proto ID Catalog 1 | . . . . . 1 . Fabricator Hacks . | . . . . . . . Repair Station Hacks 2 | . . . 2 . . . Scan Component 1 | . . . 1 . . . Repair 1 | . . . 1 . . . Recycling Unit Hacks . | . . . . . . . Scanalyzer 4 | . . . 4 . . . Insert Component 2 | . . . 2 . . . Analyze 2 | . . . 2 . . . Garrison Access Hacks . | . . . . . . . Unauthorized Hacks . | . . . . . . . Terminals . | . . . . . . . Fabricators . | . . . . . . . Repair Stations . | . . . . . . . Recycling Units . | . . . . . . . Scanalyzers . | . . . . . . . Garrison Access . | . . . . . . . Data Cores Recovered . | . . . . . . . Used . | . . . . . . . Hacking Detections 6 | . 1 . 5 . . . Full Trace Events 1 | . . . 1 . . . Feedback Events . | . . . . . . . Feedback Blocked . | . . . . . . . Robot Schematics Acquired . | . . . . . . . Robots Built . | . . . . . . . Authchips . | . . . . . . . Time . | . . . . . . . Total Robot Build Rating . | . . . . . . . Part Schematics Acquired 2 | . . . 2 . . . Parts Built . | . . . . . . . Authchips . | . . . . . . . Time . | . . . . . . . Total Part Build Rating . | . . . . . . . Parts Repaired 1 | . . . 1 . . . Time 13 | . . . 13 . . . Parts Recycled . | . . . . . . . Recycled Matter . | . . . . . . . Retrieved Matter . | . . . . . . . Retrieved Components . | . . . . . . . Parts Scanalyzed 2 | . . . 2 . . . Part Schematics Acquired 2 | . . . 2 . . . Parts Damaged . | . . . . . . . Bothacking | -11 -10 -10 -9 -9 -9 -8 ------------ Run | Yrd Mat Min Mat Min Exi Min Used RIF Installer . | . . . . . . . Robots Hacked 5 | . . . . . 5 . Non-combat 3 | . . . . . 3 . Combat 2 | . . . . . 2 . Robot Hacks Applied 5 | . . . . . 5 . parse_system 5 | . . . . . 5 . Relay Couplers Released . | . . . . . . . Fabnet Peak Effective % . | . . . . . . . Robots Rewired . | . . . . . . . Allies Hacked . | . . . . . . . Hacks Repelled . | . . . . . . . Allies | -11 -10 -10 -9 -9 -9 -8 -------- Run | Yrd Mat Min Mat Min Exi Min Total Allies 4 | . . 1 . 3 . . Largest Group 3 | . . 1 1 3 2 2 Highest-Rated Group 40 | . . 31 31 40 32 32 Highest-Rated Ally 31 | . . 31 31 16 16 16 Total Orders . | . . . . . . . Ally Attacks 33 | . . 7 3 14 . 9 Total Damage 409 | . . 125 20 168 . 96 Kills 4 | . . 2 . 2 . . Allies Corrupted . | . . . . . . . Allies Melted . | . . . . . . . Intel | -11 -10 -10 -9 -9 -9 -8 ------- Run | Yrd Mat Min Mat Min Exi Min Active Infowar (turns) 3672 | 54 1156 69 1408 803 182 . Optics 2143 | . . . 1158 803 182 . Terrain 1699 | 54 1156 69 420 . . . Robot Analysis Total . | . . . . . . . Derelict Logs Recovered 1 | . . . . 1 . . Drone Launches . | . . . . . . . Drone Recoveries . | . . . . . . . Exploration | -11 -10 -10 -9 -9 -9 -8 ------------- Run | Yrd Mat Min Mat Min Exi Min Turns Passed 4510 | 139 1156 69 1408 803 766 169 Spaces Moved 2274 | 70 561 33 645 448 460 57 Core 10 | 10 . . . . . . Treads 2264 | 60 561 33 645 448 460 57 Legs . | . . . . . . . Wheels . | . . . . . . . Hover . | . . . . . . . Flight . | . . . . . . . Fastest Speed 50 | 50 160 160 160 160 160 240 Average Speed 162 | 148 160 160 160 160 163 240 Slowest Speed 240 | 160 160 160 240 160 240 240 Overloaded Moves . | . . . . . . . Propulsion Burnouts . | . . . . . . . Robots Hopped . | . . . . . . . Potential Cave-ins . | . . . . . . . Cave-ins Triggered . | . . . . . . . Exploration Rate (%) 42 | 4 81 12 47 73 69 12 Regions Visited 6 Branch Regions 4 Pre-discovered Areas 3 | . . . . 2 1 . Known Exits Taken . | . . . . . . . Unknown Exits Taken 6 | 1 1 1 1 1 1 . Scrap Searched 2 | . . . . 2 . . Spaces Dug . | . . . . . . . Terrain Destroyed 77 | . . . 43 20 . 14 Melee . | . . . . . . . Projectile 22 | . . . 12 7 . 3 AOE 55 | . . . 31 13 . 11 Terrain Rammed . | . . . . . . . Walls Destroyed . | . . . . . . . Machines Disabled . | . . . . . . . Actions | -11 -10 -10 -9 -9 -9 -8 --------- Run | Yrd Mat Min Mat Min Exi Min Total 2731 | 90 693 49 857 494 476 72 Wait 136 | . 38 16 63 19 . . Move 2268 | 69 560 32 644 447 459 57 Hop . | . . . . . . . Pick Up 38 | 8 12 1 15 1 1 . Fast Attach 26 | 7 4 . 13 . 2 . Attach 13 | . 1 . 6 2 3 1 Detach 1 | . . . . . 1 . Swap 7 | . 1 . 1 3 . 2 Drop 34 | . 10 . 18 1 5 . Fire 200 | 6 66 . 95 21 . 12 Melee 5 | . . . . . 5 . Ram . | . . . . . . . Kick . | . . . . . . . Crush 3 | . 1 . 2 . . . Escape Stasis . | . . . . . . . Rewire . | . . . . . . . Trap . | . . . . . . . Miscellaneous . | . . . . . . . Route ------- -11/Scrapyard -10/Materials (discovered 4 exits: *Mat x2 / [*Min x2]) -10/Mines -9/Materials (discovered 5 exits: [*Mat] / [*Min x2] / [*Sto x2]) -9/Mines -9/Exiles (discovered 2 exits: [*Min x2]) -8/Mines History --------- Turn | Location | Event 9 | -11/Scrapyard | Discovered new exit (range 15) 140 | -11/Scrapyard | Entered Materials 314 | -10/Materials | Build established: Mutant 473 | -10/Materials | Discovered new exit (range 15) 890 | -10/Materials | Discovered new exit (range 16) 1144 | -10/Materials | Discovered new exit (range 15) 1238 | -10/Materials | Discovered new exit (range 3) 1296 | -10/Materials | Entered Mines 1299 | -10/Mines | Received a Mining Laser from a helpful Derelict 1355 | -10/Mines | Discovered new exit (range 7) 1365 | -10/Mines | Entered Materials 1365 | -9/Materials | Accompanied by 1 ally 1365 | -9/Materials | Evolved 2 slots: Utility x2 1403 | -9/Materials | Repaired Ion Engine 1686 | -9/Materials | Discovered new exit (range 10) 1838 | -9/Materials | Discovered new exit (range 15) 1863 | -9/Materials | Lost 4 parts (1n1u2w) 2071 | -9/Materials | Core integrity fell below 50% 2135 | -9/Materials | Discovered new exit (range 17) 2136 | -9/Materials | Build established: Scavenger-Mutant 2287 | -9/Materials | Discovered new exit (range 17) 2531 | -9/Materials | Build established: Mutant 2652 | -9/Materials | Discovered new exit (range 15) 2773 | -9/Materials | Entered Mines 2801 | -9/Mines | Met a Derelict bent on vengeance 2816 | -9/Mines | Learned location of Storage (-9) 3236 | -9/Mines | Assisted by bots powering up and referring to "LRC-V3" 3567 | -9/Mines | Deemed a non-threat by the Exiles lab entrance 3567 | -9/Mines | Discovered new exit (range 5) 3576 | -9/Mines | Entered Exiles 3576 | -9/Exiles | Accompanied by 2 allies 3598 | -9/Exiles | Discovered new exit (range 16) 3617 | -9/Exiles | Met 8R-AWN 3645 | -9/Exiles | Met EX-HEX 3691 | -9/Exiles | Met EX-BIN 3710 | -9/Exiles | Aligned with FarCom system 3712 | -9/Exiles | Given EX-Vault access code 3750 | -9/Exiles | Opened EX-Vault 3767 | -9/Exiles | Found Flying Fortress v7 3798 | -9/Exiles | Warned to stay clear of 0b10 Research branches 3997 | -9/Exiles | Met EX-DEC 4046 | -9/Exiles | Learned location of Zion (-6) 4065 | -9/Exiles | Build established: Scavenger-Mutant 4112 | -9/Exiles | Discovered new exit (range 14) 4342 | -9/Exiles | Left Exiles lab with Flying Fortress v7 4342 | -9/Exiles | Entered Mines 4342 | -8/Mines | Accompanied by 2 allies 4503 | -8/Mines | Core integrity fell below 20% 4511 | -8/Mines | Destroyed by G-47 Trooper with Particle Gun Last Messages --------------- 04497_ System corrupted: Heat flow error (+299). 04498_ L-31 Rogue knocked back. 04500_ Assault Cannon destroyed. 04501_ L-31 Rogue destroyed. 04503_ Power failure, Ion Engine shutdown. 04503_ Overheating: Energy bleed (-40). 04504_ Overheating: System interference. 04504_ Assault Cannon temporarily disabled. 04505_ Overheating: Lrg. Storage Unit damaged (-111). 04506_ Overheating: Assault Cannon damaged (-111). 04508_ Critical hit (Burn: +37). 04509_ Overheating: Core damaged (-44). 04510_ Overheating: Assault Cannon damaged (-19). 04510_ Overheating: Hacking Suite damaged (-7). 04510_ Lgt. Armor Plating destroyed. 04511_ Overheating: Lrg. Storage Unit damaged (-126). Map ----- +----------------------------------------------------+ | | | | | | | | | | | | | | | ????????????????????????????????????? | | ????????????????????????????????????? | | ?????????????????????#####??????????? | | ?????????????????##### ##?????????? | | ????????????????## ######????? | | ????????????????# ##???? | | ????????????????# #???? | | ?????????????????# #???? | | ?????????????????# #????? | | ??????????????????# #??????? | | ??????????????????## ## ##??????? | | ???????????????????# ### ##???????? | | ???????????????????# #?#####????????? | | ???????????????????# #??????????????? | | ???????????????????# ######?????????? | | ???????????????????# #?????????? | | ???????????????????##### #?????????? | | ???????????????????????# #;####????? | | ????????????????????#### @ % g #????? | | ???????????????????## %##;# #????? | | ??????????????????## #### ###??? | | ?????????????????## % ## #??? | | ?????????????????# ### #??? | | ?????????????????# *%= ##? #??? | | ?????????????????## = #??#??? | | ??????????????????## % #?????? | | ??????????????????? g #?????? | | ??????????????????## = = ####?????? | | ??????????????????## %[%= #????????? | | ???????????????????#[%%! ###????????? | | ???????????????????# = ???????????? | | ???????????????????## ?????????? | | ????????????????????# #####????????? | | ???????????????????? #????????????? | | ??????????????????? #????????????? | | ???????????????????#####????????????? | | ????????????????????????????????????? | | ????????????????????????????????????? | | ????????????????????????????????????? | | ????????????????????????????????????? | | ????????????????????????????????????? | | ????????????????????????????????????? | | ????????????????????????????????????? | +----------------------------------------------------+ Best States ------------- Heat Dissipation 28 Energy Generation 10 Energy Capacity 250 Matter Stores 300 Matter Capacity 300 Sight Range 18 Terrain Scan Range 16 Terrain Scan Density 85 Armor Coverage 300 Evasion (%) 50 Targeting Accuracy 5 Recoil Reduction 2 Salvage Targeting 2 Offensive Hacking 10 Item Schematics ----------------- Hacking Suite | -9/Materials | Scanalyzed Imp. Flight Unit | -9/Materials | Scanalyzed Robot Schematics ------------------ None Fabricated ------------ Nothing Repaired ---------- Ion Engine | 8% | -9/Materials Alien Tech Used ----------------- None Achievements -------------- None Challenges ------------ None Game ------ Seed ChainOvertunedShell Manual? 0 Play Time 00:37:21 Cumulative 26.3 hours Start 2025.08.09 @ 19:19:52 End 2025.08.09 @ 20:24:14 Sessions 1 Manual Loads 0 Difficulty Rogue Special Mode None Game No. 42 Rogue 42 Adventurer 0 Explorer 0 Win Type - Total 0 Types 0/0/0/0/0/0/0/0/0/0 Lore% 31 Gallery% 30 Achievement% 27 Wizard Run 0 Options --------- Layout 1 ASCII 0 Keyboard 0 Movement Numpad Keybinds 0 Fullscreen 1 Font 24/Smallcaps Map View 50x35 Zoom Use 0% Tactical HUD 1 Map Filters NONE Filters NONE Steam 1 RUN: 3fe71045-23fc-4010-b55a-18632f4c94d9